bitfinex/quotes_SOLUSD_20250207
["timestamp","ask_amount","ask_price","bid_price","bid_amount"]
[1738942620055,20.0,198.79,198.78,0.063]
[1738942620460,3.5212,198.8,198.78,0.063]
[1738942620663,3.52,198.86,198.79,39.67565504]
[1738942620851,0.03,198.91,198.81,0.12549]
[1738942621174,0.03,198.91,198.83,0.12549]
[1738942621473,0.03,198.91,198.84,0.7539694]
[1738942621674,3.5492,198.91,198.8,0.75402739]
[1738942621871,39.67565504,198.87,198.8,39.67565504]
[1738942622060,13.53733853,198.9,198.8,39.67565504]
[1738942622061,39.67565504,198.9,198.83,39.67565504]
[1738942622252,52.02275504,198.91,198.84,39.67565504]
[1738942622454,39.67565504,198.89,198.82,39.67565504]
[1738942622661,39.67565504,198.88,198.81,39.67565504]
[1738942622869,39.67565504,198.82,198.78,0.063]
[1738942623067,39.67565504,198.8,198.78,0.063]
[1738942623464,39.67565504,198.81,198.78,0.063]
[1738942623666,39.67565504,198.8,198.78,0.063]
[1738942624274,6.1391,198.84,198.78,39.73865504]
[1738942624478,6.1391,198.84,198.79,39.67565504]
[1738942624864,9.6595,198.84,198.79,39.67565504]
[1738942625175,9.6595,198.84,198.78,0.063]
[1738942625368,9.6125,198.9,198.78,5.0936]
[1738942625563,9.6125,198.9,198.79,0.75431125]
[1738942625970,20.0,198.87,198.78,5.84784683]
[1738942626279,20.0,198.86,198.82,39.67565504]
[1738942626480,3.5193,198.9,198.85,39.67565504]
[1738942626695,0.03,198.91,198.89,39.67565504]
[1738942626897,0.03,198.91,198.9,39.67565504]
[1738942627381,0.03,198.91,198.9,40.42960709]
[1738942627799,0.03,198.91,198.9,80.23075213]
[1738942628577,0.03,198.91,198.9,80.10526213]
[1738942628884,0.03,198.91,198.9,39.67565504]
[1738942629293,0.03,198.91,198.89,39.67565504]
[1738942629466,0.03,198.91,198.9,39.67565504]
[1738942630165,0.03,198.91,198.85,39.67565504]
[1738942630384,20.0,198.9,198.87,39.67565504]
[1738942630591,0.03,198.91,198.88,39.67565504]
[1738942630786,0.03,198.91,198.84,0.75397844]
[1738942630970,0.03,198.91,198.87,39.67565504]
[1738942631170,0.03,198.91,198.9,39.67565504]
[1738942631585,0.03,198.91,198.9,79.35131008]
[1738942631992,0.03,198.91,198.9,39.67565504]
[1738942632163,0.03,198.91,198.9,40.4295676]
[1738942632370,0.03,198.91,198.9,45.4571676]
[1738942632600,0.03,198.91,198.9,39.67565504]
[1738942632890,0.03,198.91,198.88,0.7537802]
[1738942632891,0.03,198.91,198.87,39.67565504]
[1738942633094,0.03,198.91,198.89,39.67565504]
[1738942633268,0.03,198.91,198.9,39.67565504]
[1738942633595,0.03,198.91,198.9,79.35131008]
[1738942633772,0.03,198.91,198.9,40.42943092]
[1738942634274,0.03,198.91,198.9,85.13268596]
[1738942634469,0.03,198.91,198.9,85.25817596]
[1738942634674,0.03,198.91,198.9,54.41166312]
[1738942634987,1.5373,199.03,198.93,20.0]
[1738942635164,3.0165,199.06,199.02,24.25239862]
[1738942635376,6.3375,199.07,199.04,24.25239862]
[1738942635586,0.03,199.09,199.05,24.25239862]
[1738942635765,24.25239862,199.07,199.01,24.25239862]
[1738942635970,3.5461,199.09,198.96,0.75343576]
[1738942636184,0.15549,199.09,198.96,0.75343576]
[1738942636368,20.0,199.07,198.96,5.77933576]
[1738942636565,20.0,199.07,198.9,36.82149862]
[1738942636566,20.0,199.05,198.94,5.779974]
[1738942636775,20.0,199.05,198.92,5.0269]
[1738942636970,20.0,199.05,198.93,0.75377305]
[1738942637175,20.0,199.05,198.99,39.40279496]
[1738942637488,3.5161,199.08,199.04,39.40279496]
[1738942637788,20.0,199.07,198.96,0.75343112]
[1738942637966,3.5161,199.08,198.96,0.75343112]
[1738942638167,0.12549,199.05,198.92,40.15640967]
[1738942638364,39.40279496,198.99,198.89,5.0277]
[1738942638574,39.40279496,198.99,198.92,39.40279496]
[1738942638780,39.40279496,199.01,198.94,39.40279496]
[1738942638998,39.40279496,199.0,198.93,39.40279496]
[1738942639185,39.40279496,199.01,198.93,39.40279496]
[1738942639385,3.5175,199.0,198.93,44.42959496]
[1738942639582,3.5175,199.0,198.93,39.40279496]
[1738942639993,3.5175,199.0,198.94,39.40279496]
[1738942640197,3.517,199.03,198.97,39.40279496]
[1738942640393,39.40279496,199.01,198.94,39.40279496]
[1738942640880,51.71239496,199.03,198.95,39.40279496]
[1738942641084,3.517,199.03,198.98,39.40279496]
[1738942641281,39.40279496,199.04,198.97,39.40279496]
[1738942641599,39.40279496,199.04,198.96,39.40279496]
[1738942641800,39.40279496,199.03,198.95,39.40279496]
[1738942642099,39.40279496,199.03,198.96,39.40279496]
[1738942642310,12.3078,199.06,198.92,0.75367705]
[1738942642311,20.12549,199.02,198.92,0.75367705]
[1738942642486,39.40279496,198.95,198.88,39.40279496]
[1738942642685,39.40279496,198.94,198.87,39.40279496]
[1738942643070,39.40279496,198.94,198.83,0.75400887]
[1738942643071,39.40279496,198.96,198.89,39.40279496]
[1738942643275,42.92099496,198.96,198.89,39.40279496]
[1738942643479,39.40279496,198.94,198.87,39.40279496]
[1738942643912,39.40279496,198.93,198.86,39.40279496]
[1738942644399,39.40279496,198.92,198.85,39.40279496]
[1738942644597,3.5182,198.96,198.91,39.40279496]
[1738942644812,3.5182,198.96,198.9,39.40279496]
[1738942645001,20.0,198.95,198.83,0.75394246]
[1738942645181,20.0,198.95,198.82,5.78350994]
[1738942645387,3.519,198.92,198.87,39.40279496]
[1738942646109,42.92179496,198.92,198.85,39.40279496]
[1738942646311,42.92179496,198.92,198.84,39.40279496]
[1738942646611,3.519,198.92,198.87,39.40279496]
[1738942647288,3.5188,198.94,198.88,39.40279496]
[1738942647890,3.5181,198.97,198.91,39.40279496]
[1738942648504,3.5181,198.97,198.92,39.40279496]
[1738942648702,1.647,198.98,198.92,39.40279496]
[1738942648907,6.0324,199.01,198.96,39.40279496]
[1738942649422,6.0324,199.01,198.98,39.40279496]
[1738942649610,3.5173,199.02,198.98,39.40279496]
[1738942649793,3.517,199.04,199.0,39.40279496]
[1738942649986,6.1154,199.06,198.97,0.12549]
[1738942650194,0.03,199.07,199.05,39.40279496]
[1738942650590,0.03,199.07,199.04,39.40279496]
[1738942650789,0.03,199.07,199.0,40.15635806]
[1738942651018,0.03,199.07,199.06,39.40279496]
[1738942652124,0.03,199.07,199.02,39.40279496]
[1738942652287,0.03,199.07,198.98,39.40279496]
[1738942652288,39.40279496,199.06,198.98,39.40279496]
[1738942652489,39.40279496,199.05,198.98,39.40279496]
[1738942652782,39.40279496,199.06,198.99,39.40279496]
[1738942653108,0.03,199.07,198.98,39.40279496]
[1738942653109,39.40279496,199.05,198.98,39.40279496]
[1738942653302,0.03,199.07,198.97,39.40279496]
[1738942653303,39.40279496,199.04,198.97,39.40279496]
[1738942653513,3.517,199.03,198.97,39.40279496]
[1738942653806,3.517,199.03,198.96,39.40279496]
[1738942654113,42.91979496,199.03,198.95,39.40279496]
[1738942654306,39.40279496,198.99,198.91,39.40279496]
[1738942654505,39.40279496,198.97,198.89,39.40279496]
[1738942654809,39.40279496,198.94,198.87,39.40279496]
[1738942655107,39.40279496,198.94,198.86,39.40279496]
[1738942655606,39.40279496,198.98,198.9,39.40279496]
[1738942655807,39.40279496,198.97,198.9,39.40279496]
[1738942656009,39.40279496,198.96,198.89,39.40279496]
[1738942656193,39.40279496,198.97,198.89,39.40279496]
[1738942656398,39.40279496,198.96,198.89,39.40279496]
[1738942656842,39.40279496,198.97,198.89,39.40279496]
[1738942657121,20.0,198.98,198.92,39.40279496]
[1738942657306,13.41184853,199.0,198.92,39.40279496]
[1738942657500,39.40279496,198.97,198.89,39.40279496]
[1738942657710,51.71549496,198.98,198.91,39.40279496]
[1738942658012,39.40279496,198.97,198.9,39.40279496]
[1738942658210,51.71549496,198.98,198.91,39.40279496]
[1738942658516,51.71549496,198.98,198.92,39.40279496]
[1738942658517,12.3127,198.98,198.92,39.40279496]
[1738942658708,3.5182,198.96,198.9,39.40279496]
[1738942658894,3.5182,198.96,198.91,39.40279496]
[1738942659095,3.5177,198.99,198.95,39.40279496]
[1738942659291,39.40279496,199.01,198.88,0.7537934]
[1738942659611,13.41184853,199.01,198.92,39.40279496]
[1738942659910,39.40279496,198.99,198.91,39.40279496]
[1738942660108,39.40279496,199.0,198.93,39.40279496]
[1738942660316,39.40279496,199.0,198.92,39.40279496]
[1738942660610,23.5172,199.02,198.97,24.25168312]
[1738942660816,3.5172,199.02,198.98,24.25168312]
[1738942661312,24.25168312,199.01,198.94,24.25168312]
[1738942661498,20.0,198.99,198.88,0.75392192]
[1738942661699,20.0,198.99,198.92,24.25168312]
[1738942662010,20.0,198.99,198.91,0.063]
[1738942662011,24.25168312,198.97,198.91,0.063]
[1738942662400,24.25168312,198.94,198.91,0.063]
[1738942662597,24.25168312,198.92,198.91,0.063]
[1738942662798,34.29608312,198.92,198.91,0.063]
[1738942663000,10.0444,198.92,198.91,0.063]
[1738942663313,6.5254,198.92,198.91,24.31468312]
[1738942663500,6.5254,198.92,198.91,0.063]
[1738942663705,3.5181,198.97,198.91,24.31468312]
[1738942664013,23.5181,198.97,198.93,24.25168312]
[1738942664213,41.18163165,198.97,198.91,0.063]
[1738942664515,24.25168312,198.93,198.91,0.063]
[1738942664893,24.25168312,198.92,198.91,0.063]
[1738942665103,20.0,198.92,198.91,0.063]
[1738942666915,23.519,198.92,198.91,0.063]
[1738942667498,3.5184,198.95,198.91,0.063]
[1738942668205,3.5184,198.95,198.91,24.31468312]
[1738942668408,20.0,198.93,198.91,0.063]
[1738942668611,44.25168312,198.92,198.91,0.063]
[1738942669009,47.77068312,198.92,198.91,0.063]
[1738942669405,3.5188,198.94,198.91,0.063]
[1738942670219,3.5181,198.97,198.92,24.25168312]
[1738942670516,20.0,198.96,198.93,24.25168312]
[1738942670929,6.5239,198.99,198.95,24.25168312]
[1738942671109,3.5172,199.02,198.97,24.25168312]
[1738942671414,20.0,199.01,198.98,24.25168312]
[1738942671796,3.5172,199.02,198.99,24.25168312]
[1738942672005,6.1698,199.04,199.0,24.25168312]
[1738942672224,9.6867,199.04,198.99,24.25168312]
[1738942673016,9.6867,199.04,198.98,24.25168312]
[1738942673315,24.25168312,199.03,198.96,24.25168312]
[1738942673519,37.66353165,199.02,198.95,24.25168312]
[1738942673703,37.66353165,199.02,198.92,24.25168312]
[1738942673704,24.25168312,198.99,198.92,24.25168312]
[1738942674018,24.25168312,198.96,198.91,0.063]
[1738942674715,59.45026099,198.92,198.91,0.063]
[1738942674914,62.96926099,198.92,198.91,0.063]
[1738942675120,23.519,198.92,198.91,0.063]
[1738942676499,76.38110952,198.92,198.91,0.063]
[1738942676705,83.72788952,198.92,198.91,0.0001]
[1738942676996,20.0,198.88,198.84,0.063]
[1738942678825,52.86210952,198.91,198.84,0.063]
[1738942679026,3.5193,198.9,198.84,39.51326099]
[1738942679222,42.96956099,198.9,198.84,0.063]
[1738942679428,39.45026099,198.87,198.84,0.063]
[1738942679805,39.45026099,198.85,198.84,0.063]
[1738942680007,59.45026099,198.86,198.84,0.063]
[1738942680211,39.45026099,198.87,198.84,0.063]
[1738942680411,51.76786099,198.9,198.84,0.063]
[1738942680613,12.3176,198.9,198.84,0.063]
[1738942680829,20.0,198.87,198.84,0.063]
[1738942681127,3.52,198.86,198.84,0.063]
[1738942681324,8.7983,198.9,198.84,39.51326099]
[1738942681325,3.5195,198.89,198.84,39.51326099]
[1738942682127,39.45026099,198.85,198.84,0.063]
[1738942682503,52.98759952,198.85,198.84,0.0001]
[1738942682915,53.11308952,198.85,198.84,0.0001]
[1738942683241,3.5202,198.85,198.84,0.0001]
[1738942683543,23.5202,198.85,198.84,0.0001]
[1738942684233,76.50779952,198.85,198.84,0.0001]
[1738942684440,76.63328952,198.85,198.84,0.0001]
[1738942684629,6.51849,198.8,198.78,0.063]
[1738942684934,53.61308952,198.79,198.78,0.0001]
[1738942685519,57.13438952,198.79,198.78,0.0001]
[1738942686328,58.13438952,198.79,198.78,0.0001]
[1738942686733,57.13438952,198.79,198.78,0.0001]
[1738942687715,33.66282853,198.72,198.71,0.0001]
[1738942687913,73.11308952,198.72,198.71,0.0001]
[1738942688229,73.61308952,198.72,198.71,0.0001]
[1738942688608,74.61308952,198.72,198.71,0.0001]
[1738942689117,0.25098,198.66,198.63,0.063]
[1738942689312,13.41184853,198.6,198.59,0.063]
[1738942689511,56.38670952,198.6,198.59,0.063]
[1738942689711,16.93644853,198.6,198.59,0.063]
[1738942689935,56.38670952,198.6,198.59,0.063]
[1738942690344,39.45026099,198.56,198.48,39.45026099]
[1738942690636,39.45026099,198.57,198.5,39.45026099]
[1738942690843,39.45026099,198.59,198.51,39.45026099]
[1738942691015,39.45026099,198.58,198.51,39.45026099]
[1738942691215,13.41184853,198.59,198.5,39.45026099]
[1738942691216,39.45026099,198.57,198.5,39.45026099]
[1738942691412,39.45026099,198.55,198.48,39.45026099]
[1738942691718,42.97596099,198.54,198.47,39.45026099]
[1738942691911,16.93734853,198.56,198.5,39.45026099]
[1738942692116,3.5255,198.56,198.5,39.45026099]
[1738942692343,3.5251,198.58,198.53,39.45026099]
[1738942692549,39.45026099,198.62,198.55,39.45026099]
[1738942692734,3.5239,198.64,198.5,39.45026099]
[1738942692735,3.5237,198.66,198.61,39.45026099]
[1738942693030,39.57575099,198.72,198.65,39.45026099]
[1738942693239,39.57575099,198.72,198.55,20.12549]
[1738942693240,3.5223,198.73,198.66,39.45026099]
[1738942693436,3.5223,198.73,198.68,39.45026099]
[1738942693608,39.45026099,198.71,198.64,39.45026099]
[1738942693809,13.41184853,198.69,198.62,39.45026099]
[1738942694632,39.45026099,198.71,198.64,39.45026099]
[1738942694819,51.77846099,198.73,198.65,39.45026099]
[1738942695021,42.97256099,198.73,198.66,39.45026099]
[1738942695639,42.97256099,198.73,198.65,39.45026099]
[1738942695818,3.5223,198.73,198.67,39.45026099]
[1738942696020,3.5223,198.73,198.62,5.0346]
[1738942696223,3.5218,198.76,198.71,39.45026099]
[1738942696626,23.5218,198.76,198.62,17.6214]
[1738942696821,52.86210952,198.75,198.68,39.45026099]
[1738942697344,39.45026099,198.73,198.66,39.45026099]
[1738942697532,52.86210952,198.74,198.67,39.45026099]
[1738942697844,0.12549,198.75,198.66,39.45026099]
[1738942697845,42.97256099,198.73,198.66,39.45026099]
[1738942698141,16.93414853,198.73,198.67,39.45026099]
[1738942698345,39.45026099,198.76,198.69,39.45026099]
[1738942698548,39.45026099,198.75,198.68,39.45026099]
[1738942699240,42.97166099,198.78,198.7,39.45026099]
[1738942699417,3.5214,198.78,198.72,39.45026099]
[1738942699737,3.5205,198.83,198.77,39.45026099]
[1738942699936,20.0,198.81,198.77,39.45026099]
[1738942700137,3.5205,198.83,198.78,39.45026099]
[1738942700332,6.3618,198.86,198.81,39.45026099]
[1738942700523,3.5197,198.89,198.83,39.45026099]
[1738942700718,42.96996099,198.89,198.82,39.45026099]
[1738942700923,20.0,198.86,198.81,39.45026099]
[1738942701129,20.0,198.86,198.82,39.45026099]
[1738942701341,3.5197,198.89,198.84,39.45026099]
[1738942701733,16.96114853,198.9,198.84,39.45026099]
[1738942702045,20.0,198.87,198.84,39.45026099]
[1738942702548,20.0,198.87,198.83,39.45026099]
[1738942702746,56.41140952,198.9,198.83,39.45026099]
[1738942703047,16.96114853,198.9,198.84,39.45026099]
[1738942703342,16.96114853,198.9,198.83,39.45026099]
[1738942703547,25.75944853,198.9,198.84,39.45026099]
[1738942703749,16.96114853,198.9,198.85,39.45026099]
[1738942704044,16.96114853,198.9,198.86,39.45026099]
[1738942704248,3.5493,198.9,198.86,39.45026099]
[1738942704438,3.0493,198.9,198.88,39.45026099]
[1738942704837,3.0493,198.9,198.86,39.45026099]
[1738942705162,3.0493,198.9,198.87,39.45026099]
[1738942705445,3.0493,198.9,198.86,39.45026099]
[1738942705638,13.41184853,198.91,198.82,39.45026099]
[1738942705639,52.98759952,198.89,198.82,39.45026099]
[1738942705835,3.5197,198.88,198.83,39.45026099]
[1738942706028,13.41184853,198.87,198.82,39.45026099]
[1738942706722,3.52,198.86,198.81,39.45026099]
[1738942706928,3.52,198.86,198.83,39.45026099]
[1738942707144,3.52,198.86,198.81,39.45026099]
[1738942707325,3.52,198.86,198.79,39.45026099]
[1738942707326,13.53733853,198.85,198.79,39.45026099]
[1738942707525,20.12549,198.8,198.76,39.45026099]
[1738942707850,52.86210952,198.79,198.71,39.45026099]
[1738942708140,0.12549,198.78,198.71,39.45026099]
[1738942708349,0.12549,198.78,198.73,39.45026099]
[1738942708642,0.12549,198.78,198.72,39.45026099]
[1738942708829,3.5216,198.77,198.72,39.45026099]
[1738942709260,12.3257,198.77,198.7,39.45026099]
[1738942709423,0.12549,198.76,198.7,39.45026099]
[1738942709625,13.66282853,198.76,198.69,39.45026099]
[1738942709834,13.41184853,198.74,198.68,39.45026099]
[1738942710333,3.5216,198.77,198.72,39.45026099]
[1738942710648,3.5216,198.77,198.73,39.45026099]
[1738942710850,20.0,198.75,198.73,39.45026099]
[1738942711032,3.5209,198.82,198.74,39.45026099]
[1738942711230,3.5209,198.82,198.78,39.45026099]
[1738942711432,33.41184853,198.8,198.74,39.45026099]
[1738942712160,33.41184853,198.8,198.76,39.45026099]
[1738942712454,3.5209,198.82,198.79,39.45026099]
[1738942712635,3.5204,198.84,198.81,39.45026099]
[1738942712840,3.5204,198.84,198.8,39.45026099]
[1738942713150,39.45026099,198.82,198.71,5.0324]
[1738942713338,13.41184853,198.83,198.76,39.45026099]
[1738942713339,52.86210952,198.83,198.76,39.45026099]
[1738942713538,13.41184853,198.83,198.77,39.45026099]
[1738942714037,52.86210952,198.83,198.76,39.45026099]
[1738942714356,3.5207,198.82,198.8,39.45026099]
[1738942714556,3.5204,198.84,198.81,39.45026099]
[1738942715048,3.5204,198.84,198.78,39.45026099]
[1738942715254,3.5204,198.84,198.79,39.45026099]
[1738942715565,3.5204,198.84,198.8,39.45026099]
[1738942716270,3.5204,198.84,198.74,39.45026099]
[1738942716271,0.12549,198.81,198.74,39.45026099]
[1738942716438,13.41184853,198.8,198.73,39.45026099]
[1738942716635,13.41184853,198.8,198.72,39.45026099]
[1738942716636,0.12549,198.79,198.72,39.45026099]
[1738942716962,39.45026099,198.82,198.74,39.45026099]
[1738942717147,20.0,198.79,198.74,39.45026099]
[1738942717337,20.0,198.78,198.74,39.45026099]
[1738942718248,3.5216,198.77,198.74,39.45026099]
[1738942718645,3.5205,198.83,198.76,39.45026099]
[1738942718849,3.5205,198.83,198.79,39.45026099]
[1738942719052,16.93234853,198.83,198.78,39.45026099]
[1738942719254,13.41184853,198.82,198.77,39.45026099]
[1738942719850,3.5209,198.81,198.78,39.45026099]
[1738942720045,3.5204,198.84,198.8,39.45026099]
[1738942720242,81.8,198.85,198.83,39.45026099]
[1738942720450,0.03,198.87,198.74,0.75447208]
[1738942720451,0.03,198.87,198.84,39.45026099]
[1738942720652,3.5499,198.87,198.85,39.45026099]
[1738942720852,3.5499,198.87,198.83,39.45026099]
[1738942721054,3.5499,198.87,198.81,39.45026099]
[1738942721055,13.41184853,198.86,198.81,39.45026099]
[1738942721241,13.41184853,198.86,198.8,39.45026099]
[1738942721441,13.41184853,198.86,198.79,39.45026099]
[1738942721659,0.12549,198.85,198.79,39.45026099]
[1738942721851,0.12549,198.82,198.77,39.45026099]
[1738942722264,20.0,198.8,198.75,39.45026099]
[1738942722438,20.0,198.8,198.72,0.063]
[1738942722648,20.0,198.8,198.74,39.45026099]
[1738942722861,13.41184853,198.79,198.72,39.51326099]
[1738942723466,13.41184853,198.79,198.73,39.45026099]
[1738942723867,3.5214,198.78,198.74,39.45026099]
[1738942724387,3.5209,198.81,198.77,39.45026099]
[1738942724543,3.5209,198.81,198.79,39.45026099]
[1738942725349,16.93234853,198.83,198.78,39.45026099]
[1738942725675,0.75098,198.82,198.76,39.45026099]
[1738942725977,0.25098,198.82,198.76,39.45026099]
[1738942726157,25.73374853,198.83,198.78,39.45026099]
[1738942726362,16.93234853,198.83,198.81,39.45026099]
[1738942726746,23.5205,198.83,198.81,39.45026099]
[1738942727364,23.5205,198.83,198.8,39.45026099]
[1738942728173,23.5205,198.83,198.81,39.45026099]
[1738942728478,23.5205,198.83,198.82,39.45026099]
[1738942728655,3.5205,198.83,198.82,39.45026099]
[1738942728845,3.5202,198.85,198.82,39.45026099]
[1738942729250,3.5202,198.85,198.81,39.45026099]
[1738942729449,13.53733853,198.84,198.79,39.45026099]
[1738942730255,52.98759952,198.84,198.77,39.45026099]
[1738942730452,13.41184853,198.82,198.77,39.45026099]
[1738942730759,13.41184853,198.82,198.8,24.30211824]
[1738942731174,12.3219,198.83,198.8,24.30211824]
[1738942731356,32.3219,198.83,198.8,24.30211824]
[1738942731557,32.3219,198.83,198.79,24.30211824]
[1738942732058,3.5205,198.83,198.8,24.30211824]
[1738942732258,3.5205,198.83,198.81,24.30211824]
[1738942732480,90.6002,198.86,198.81,24.30211824]
[1738942732665,3.5202,198.85,198.81,24.30211824]
[1738942733178,3.5202,198.85,198.82,24.30211824]
[1738942733364,3.5202,198.85,198.83,24.30211824]
[1738942733565,3.5202,198.85,198.84,24.30211824]
[1738942733760,81.8,198.86,198.84,24.30211824]
[1738942733964,3.5499,198.87,198.85,24.30211824]
[1738942734165,3.5499,198.87,198.84,24.30211824]
[1738942734361,3.5499,198.87,198.83,24.30211824]
[1738942734569,3.5499,198.87,198.82,24.30211824]
[1738942734867,13.41184853,198.86,198.81,24.30211824]
[1738942735063,13.41184853,198.86,198.79,24.30211824]
[1738942735064,0.12549,198.85,198.79,24.30211824]
[1738942735471,0.12549,198.85,198.73,5.0319]
[1738942735659,0.12549,198.85,198.8,24.30211824]
[1738942735861,3.5204,198.84,198.79,24.30211824]
[1738942736281,3.5204,198.84,198.8,24.30211824]
[1738942736459,0.12549,198.85,198.82,24.30211824]
[1738942736460,20.0,198.85,198.82,24.30211824]
[1738942736656,3.52,198.86,198.83,24.30211824]
[1738942736862,3.52,198.86,198.81,24.30211824]
[1738942737280,3.52,198.86,198.8,24.30211824]
[1738942737665,3.52,198.86,198.81,24.30211824]
[1738942738079,12.3201,198.86,198.81,24.30211824]
[1738942738283,12.3201,198.86,198.82,24.30211824]
[1738942738863,13.53733853,198.85,198.79,24.30211824]
[1738942739065,13.41184853,198.85,198.8,24.30211824]
[1738942739268,3.52,198.86,198.82,24.30211824]
[1738942739474,3.52,198.86,198.84,24.30211824]
[1738942739768,3.52,198.86,198.81,24.30211824]
[1738942739961,3.52,198.86,198.8,24.30211824]
[1738942740170,13.41184853,198.86,198.79,24.30211824]
[1738942740369,3.5498,198.87,198.82,24.30211824]
[1738942740568,0.03,198.87,198.85,24.30211824]
[1738942740776,0.03,198.87,198.84,24.30211824]
[1738942741383,0.03,198.87,198.83,24.30211824]
[1738942741565,0.03,198.87,198.84,24.30211824]
[1738942741761,20.03,198.87,198.84,24.30211824]
[1738942741975,0.12549,198.86,198.79,24.30211824]
[1738942742184,13.41184853,198.83,198.77,24.30211824]
[1738942742584,13.41184853,198.83,198.78,24.30211824]
[1738942742885,20.0,198.8,198.75,24.30211824]
[1738942743189,20.0,198.8,198.72,0.063]
[1738942743190,37.71396677,198.76,198.72,0.063]
[1738942743394,24.30211824,198.75,198.72,0.063]
[1738942743581,3.5223,198.73,198.72,0.063]
[1738942744075,1.6648,198.8,198.72,24.36511824]
[1738942744290,1.6648,198.8,198.75,24.30211824]
[1738942744592,85.3209,198.82,198.78,24.30211824]
[1738942744791,85.3209,198.82,198.79,24.30211824]
[1738942744981,85.3209,198.82,198.77,24.30211824]
[1738942745573,85.3209,198.82,198.76,24.30211824]
[1738942745768,13.53733853,198.81,198.75,24.30211824]
[1738942746580,20.0,198.78,198.75,24.30211824]
[1738942746781,0.12549,198.8,198.72,0.063]
[1738942746782,37.83945677,198.79,198.72,0.063]
[1738942746991,24.55309824,198.76,198.72,0.063]
[1738942747183,37.71396677,198.74,198.72,0.063]
[1738942747368,13.41184853,198.74,198.72,0.063]
[1738942747580,16.93414853,198.73,198.72,0.063]
[1738942747910,3.5223,198.73,198.72,0.063]
[1738942748488,23.64779,198.73,198.72,0.063]
[1738942748993,23.5223,198.73,198.72,0.063]
[1738942749690,37.05963853,198.73,198.72,0.063]
[1738942750578,23.5223,198.73,198.72,0.063]
[1738942751684,36.93414853,198.73,198.72,0.063]
[1738942751887,37.05963853,198.73,198.72,0.063]
[1738942752088,61.36175677,198.73,198.72,0.063]
[1738942752285,23.5223,198.73,198.72,0.063]
[1738942753487,3.5216,198.77,198.72,24.36511824]
[1738942753685,3.5216,198.77,198.73,24.30211824]
[1738942753889,13.41184853,198.76,198.72,24.36511824]
[1738942754090,36.62781824,198.77,198.72,0.063]
[1738942754297,81.8,198.78,198.72,0.063]
[1738942754993,3.5207,198.82,198.72,0.063]
[1738942755184,13.41184853,198.81,198.72,0.063]
[1738942755496,3.5211,198.8,198.75,24.30211824]
[1738942755881,3.5211,198.8,198.77,24.30211824]
[1738942756082,3.5207,198.82,198.78,24.30211824]
[1738942756277,27.82281824,198.82,198.75,24.30211824]
[1738942756489,13.41184853,198.81,198.75,24.30211824]
[1738942757083,13.41184853,198.81,198.76,24.30211824]
[1738942757607,3.5211,198.8,198.76,24.30211824]
[1738942757791,95.21184853,198.79,198.73,24.30211824]
[1738942757990,81.8,198.79,198.75,24.30211824]
[1738942758191,81.8,198.79,198.77,24.30211824]
[1738942758542,81.8,198.79,198.76,24.30211824]
[1738942759204,81.74588169,198.79,198.74,24.30211824]
[1738942759388,81.74588169,198.79,198.72,24.36511824]
[1738942759588,41.23536677,198.78,198.72,0.063]
[1738942760799,13.41184853,198.75,198.72,0.063]
[1738942761387,3.5214,198.78,198.73,24.30211824]
[1738942762199,16.93324853,198.78,198.73,24.30211824]
[1738942762401,13.41184853,198.77,198.72,0.063]
[1738942762605,13.41184853,198.77,198.72,24.36511824]
[1738942762797,3.5218,198.76,198.72,24.36511824]
[1738942763693,23.5218,198.76,198.72,0.063]
[1738942763904,24.30211824,198.75,198.72,0.063]
[1738942764090,13.41184853,198.75,198.72,0.063]
[1738942764717,13.41184853,198.69,198.58,5.0987]
[1738942765005,81.74588169,198.68,198.61,24.30211824]
[1738942765205,81.74588169,198.67,198.58,0.063]
[1738942765397,81.74588169,198.67,198.63,24.30211824]
[1738942765601,81.74588169,198.67,198.65,24.30211824]
[1738942765820,81.74588169,198.67,198.66,24.30211824]
[1738942766216,81.74588169,198.67,198.64,24.30211824]
[1738942766386,81.74588169,198.67,198.62,24.30211824]
[1738942766709,3.5237,198.65,198.61,24.30211824]
[1738942766899,3.5237,198.65,198.63,24.30211824]